[Event "Late-Titled-Tuesday-Blitz-June-25-2024"]
[Site "Chess.com"]
[Date "2024.06.25"]
[Round "9"]
[White "Mops_2004"]
[Black "LiemLe"]
[Result "0-1"]
[WhiteElo "2804"]
[BlackElo "3020"]
[TimeControl "180+1"]
[EndTime "15:44:53 PDT"]
[Termination "LiemLe won on time"]

1. e4 {[%clk 0:03:00.9]} 1... c5 {[%clk 0:02:59.9]} 2. Nf3 {[%clk 0:02:59.5]}
2... d6 {[%clk 0:03:00.3]} 3. d4 {[%clk 0:02:59.2]} 3... cxd4 {[%clk 0:03:01.2]}
4. Nxd4 {[%clk 0:02:59.4]} 4... Nf6 {[%clk 0:03:01.8]} 5. Nc3 {[%clk 0:02:59.9]}
5... a6 {[%clk 0:03:02.4]} 6. Bc4 {[%clk 0:02:59.8]} 6... e6 {[%clk 0:03:02.4]}
7. Bb3 {[%clk 0:02:59.6]} 7... Be7 {[%clk 0:03:01.9]} 8. g4 {[%clk 0:02:57.7]}
8... h6 {[%clk 0:02:40.9]} 9. h4 {[%clk 0:02:49.4]} 9... b5 {[%clk 0:02:39.2]}
10. Qf3 {[%clk 0:02:09.7]} 10... Nfd7 {[%clk 0:02:05.7]} 11. g5 {[%clk
0:01:45.2]} 11... b4 {[%clk 0:01:43.4]} 12. Nce2 {[%clk 0:01:17.9]} 12... Ne5
{[%clk 0:01:24.9]} 13. Qg2 {[%clk 0:01:17.4]} 13... h5 {[%clk 0:01:25.3]} 14. f4
{[%clk 0:00:56.7]} 14... Ng4 {[%clk 0:01:25.1]} 15. f5 {[%clk 0:00:57]} 15... e5
{[%clk 0:01:16.1]} 16. Bd5 {[%clk 0:00:56.5]} 16... Ra7 {[%clk 0:01:12.7]} 17.
Nf3 {[%clk 0:00:41.7]} 17... Nd7 {[%clk 0:01:12.1]} 18. g6 {[%clk 0:00:35.6]}
18... fxg6 {[%clk 0:01:09]} 19. fxg6 {[%clk 0:00:36.3]} 19... Qb6 {[%clk
0:00:59.7]} 20. Ng5 {[%clk 0:00:31.8]} 20... Ndf6 {[%clk 0:00:49.2]} 21. Bf7+
{[%clk 0:00:29.7]} 21... Kd8 {[%clk 0:00:49.6]} 22. Qg1 {[%clk 0:00:20.8]} 22...
Qb8 {[%clk 0:00:35]} 23. Bd2 {[%clk 0:00:18.7]} 23... Rc7 {[%clk 0:00:32.3]} 24.
c3 {[%clk 0:00:17.3]} 24... a5 {[%clk 0:00:31.1]} 25. Rc1 {[%clk 0:00:15.9]}
25... Qb5 {[%clk 0:00:27.2]} 26. cxb4 {[%clk 0:00:14.2]} 26... axb4 {[%clk
0:00:14.8]} 27. Rxc7 {[%clk 0:00:13.1]} 27... Kxc7 {[%clk 0:00:15.7]} 28. Qa7+
{[%clk 0:00:12.9]} 28... Bb7 {[%clk 0:00:15.1]} 29. Ne6+ {[%clk 0:00:09.1]}
29... Kd7 {[%clk 0:00:15.5]} 30. Nxg7 {[%clk 0:00:06.4]} 30... Ra8 {[%clk
0:00:15.5]} 31. Qg1 {[%clk 0:00:07]} 31... Nxe4 {[%clk 0:00:15.9]} 32. Be6+
{[%clk 0:00:06.2]} 32... Kc7 {[%clk 0:00:15.7]} 33. Bxg4 {[%clk 0:00:06.4]}
33... hxg4 {[%clk 0:00:15.1]} 34. Ne6+ {[%clk 0:00:05.8]} 34... Kb8 {[%clk
0:00:14.4]} 35. g7 {[%clk 0:00:04.9]} 35... Nf6 {[%clk 0:00:08.8]} 36. Bg5
{[%clk 0:00:04.2]} 36... Ng8 {[%clk 0:00:07.6]} 37. Bxe7 {[%clk 0:00:03.8]}
37... Nxe7 {[%clk 0:00:08.5]} 38. Qxg4 {[%clk 0:00:03]} 38... Bxh1 {[%clk
0:00:08]} 39. Qg5 {[%clk 0:00:02.8]} 39... Ng8 {[%clk 0:00:07.9]} 40. Qd8+
{[%clk 0:00:02.7]} 40... Ka7 {[%clk 0:00:08.5]} 41. Qxd6 {[%clk 0:00:01.8]}
41... Rc8 {[%clk 0:00:08.1]} 42. Nc7 {[%clk 0:00:01.9]} 42... Qb6 {[%clk
0:00:07.9]} 43. Qxb6+ {[%clk 0:00:02.1]} 43... Kxb6 {[%clk 0:00:08.8]} 0-1

[Event "Late-Titled-Tuesday-Blitz-June-25-2024"]
[Site "Chess.com"]
[Date "2024.06.25"]
[Round "9"]
[White "KorolDimitriy75"]
[Black "nindjaxx8"]
[Result "0-1"]
[WhiteElo "2415"]
[BlackElo "2708"]
[TimeControl "180+1"]
[EndTime "15:44:57 PDT"]
[Termination "nindjaxx8 won by checkmate"]

1. d4 {[%clk 0:03:00.9]} 1... d5 {[%clk 0:02:56.9]} 2. c4 {[%clk 0:03:01.3]}
2... e6 {[%clk 0:02:55.9]} 3. Nc3 {[%clk 0:03:01.7]} 3... Nf6 {[%clk 0:02:53.9]}
4. Bg5 {[%clk 0:03:01.7]} 4... Be7 {[%clk 0:02:53.5]} 5. cxd5 {[%clk 0:03:01.9]}
5... exd5 {[%clk 0:02:52.8]} 6. e3 {[%clk 0:03:02.1]} 6... O-O {[%clk
0:02:50.9]} 7. Bd3 {[%clk 0:03:02.1]} 7... h6 {[%clk 0:02:50.7]} 8. Bh4 {[%clk
0:03:01.8]} 8... b6 {[%clk 0:02:50.5]} 9. Qc2 {[%clk 0:03:00.4]} 9... Bb7 {[%clk
0:02:48.9]} 10. Nge2 {[%clk 0:03:00.5]} 10... Nbd7 {[%clk 0:02:45.1]} 11. O-O
{[%clk 0:02:59.8]} 11... c5 {[%clk 0:02:41.4]} 12. f3 {[%clk 0:02:53.6]} 12...
cxd4 {[%clk 0:02:38.7]} 13. Nxd4 {[%clk 0:02:51.6]} 13... Bc5 {[%clk 0:02:37.4]}
14. Rad1 {[%clk 0:02:43]} 14... Re8 {[%clk 0:02:30.3]} 15. Rfe1 {[%clk
0:02:03.5]} 15... Qc8 {[%clk 0:02:11.7]} 16. Bf5 {[%clk 0:01:45]} 16... Qb8
{[%clk 0:01:47.9]} 17. Bg3 {[%clk 0:01:22.1]} 17... Bd6 {[%clk 0:01:45.9]} 18.
Bxd6 {[%clk 0:01:07.5]} 18... Qxd6 {[%clk 0:01:46.8]} 19. Ncb5 {[%clk
0:01:03.9]} 19... Qe7 {[%clk 0:01:25.8]} 20. Qc7 {[%clk 0:00:48.1]} 20... Nc5
{[%clk 0:00:32.2]} 21. b4 {[%clk 0:00:20.9]} 21... Na4 {[%clk 0:00:16.1]} 22. a3
{[%clk 0:00:20.1]} 22... Nb2 {[%clk 0:00:15]} 23. Rc1 {[%clk 0:00:18.4]} 23...
Nc4 {[%clk 0:00:14.5]} 24. Qxe7 {[%clk 0:00:17.2]} 24... Rxe7 {[%clk 0:00:14.5]}
25. Kf2 {[%clk 0:00:16.3]} 25... Rae8 {[%clk 0:00:13.8]} 26. Rc3 {[%clk
0:00:15.1]} 26... a6 {[%clk 0:00:13.2]} 27. Rxc4 {[%clk 0:00:12.5]} 27... dxc4
{[%clk 0:00:11]} 28. Nc3 {[%clk 0:00:12.3]} 28... b5 {[%clk 0:00:10.8]} 29. e4
{[%clk 0:00:12.5]} 29... g6 {[%clk 0:00:10.5]} 30. Bh3 {[%clk 0:00:12.1]} 30...
Rd8 {[%clk 0:00:10.7]} 31. Rd1 {[%clk 0:00:11.5]} 31... Ne8 {[%clk 0:00:09.4]}
32. Ke3 {[%clk 0:00:11.3]} 32... Nc7 {[%clk 0:00:08.7]} 33. Rd2 {[%clk
0:00:10.2]} 33... Kf8 {[%clk 0:00:06.7]} 34. g3 {[%clk 0:00:10.1]} 34... Ke8
{[%clk 0:00:07]} 35. Bg4 {[%clk 0:00:10]} 35... Nd5+ {[%clk 0:00:06.5]} 36. Nxd5
{[%clk 0:00:09.3]} 36... Rxd5 {[%clk 0:00:07.4]} 37. Rc2 {[%clk 0:00:09]} 37...
f5 {[%clk 0:00:07.1]} 38. Bh3 {[%clk 0:00:08.2]} 38... fxe4 {[%clk 0:00:07.2]}
39. fxe4 {[%clk 0:00:08.3]} 39... Rde5 {[%clk 0:00:07.6]} 40. Bg2 {[%clk
0:00:07.3]} 40... Bxe4 {[%clk 0:00:07.6]} 41. Nc6 {[%clk 0:00:05.1]} 41... Bxc6+
{[%clk 0:00:07.2]} 42. Kf4 {[%clk 0:00:04.7]} 42... Bxg2 {[%clk 0:00:07.2]} 43.
Rxg2 {[%clk 0:00:04.2]} 43... Rf5+ {[%clk 0:00:07.8]} 44. Kg4 {[%clk 0:00:04.3]}
44... Re4+ {[%clk 0:00:08.7]} 45. Kh3 {[%clk 0:00:05.2]} 45... Rh5# {[%clk
0:00:09.6]} 0-1

[Event "Late-Titled-Tuesday-Blitz-June-25-2024"]
[Site "Chess.com"]
[Date "2024.06.25"]
[Round "9"]
[White "hoshiboshi"]
[Black "Gyulamiryan-koryun"]
[Result "1-0"]
[WhiteElo "2257"]
[BlackElo "1825"]
[TimeControl "180+1"]
[EndTime "15:44:57 PDT"]
[Termination "hoshiboshi won on time"]

1. e4 {[%clk 0:02:54.8]} 1... e5 {[%clk 0:02:59.5]} 2. Nf3 {[%clk 0:02:53.8]}
2... Nc6 {[%clk 0:02:59.5]} 3. Bb5 {[%clk 0:02:53.5]} 3... a6 {[%clk 0:02:58.3]}
4. Ba4 {[%clk 0:02:53.4]} 4... Nf6 {[%clk 0:02:58.8]} 5. O-O {[%clk 0:02:52.8]}
5... Be7 {[%clk 0:02:57.9]} 6. Re1 {[%clk 0:02:50]} 6... b5 {[%clk 0:02:57]} 7.
Bb3 {[%clk 0:02:49.4]} 7... O-O {[%clk 0:02:57.6]} 8. a4 {[%clk 0:02:47.7]} 8...
b4 {[%clk 0:02:57]} 9. d3 {[%clk 0:02:40.2]} 9... a5 {[%clk 0:02:56.9]} 10. Nbd2
{[%clk 0:02:34.2]} 10... d6 {[%clk 0:02:56.9]} 11. h3 {[%clk 0:02:29.6]} 11...
Be6 {[%clk 0:02:56.7]} 12. Nc4 {[%clk 0:02:10.7]} 12... Qd7 {[%clk 0:02:50.8]}
13. Ng5 {[%clk 0:01:58.3]} 13... Nd4 {[%clk 0:02:46.9]} 14. Ba2 {[%clk
0:01:47.4]} 14... h6 {[%clk 0:02:35.7]} 15. Nxe6 {[%clk 0:01:44.1]} 15... fxe6
{[%clk 0:02:35.2]} 16. c3 {[%clk 0:01:41.1]} 16... b3 {[%clk 0:02:26]} 17. cxd4
{[%clk 0:01:26.8]} 17... bxa2 {[%clk 0:02:25.2]} 18. dxe5 {[%clk 0:01:25.9]}
18... dxe5 {[%clk 0:02:23.6]} 19. Nxe5 {[%clk 0:01:22.5]} 19... Qd4 {[%clk
0:02:11.9]} 20. Nf3 {[%clk 0:01:10.6]} 20... Qb6 {[%clk 0:01:42.8]} 21. Rxa2
{[%clk 0:01:00.7]} 21... Bb4 {[%clk 0:01:36]} 22. Rf1 {[%clk 0:00:52.3]} 22...
Rad8 {[%clk 0:01:31.3]} 23. Be3 {[%clk 0:00:49.4]} 23... Bc5 {[%clk 0:01:26.5]}
24. d4 {[%clk 0:00:32.4]} 24... Bb4 {[%clk 0:01:25.6]} 25. e5 {[%clk 0:00:29]}
25... Nd5 {[%clk 0:01:24.4]} 26. Qd3 {[%clk 0:00:26.4]} 26... Nf4 {[%clk
0:01:13.3]} 27. Qe4 {[%clk 0:00:22.1]} 27... Ne2+ {[%clk 0:01:08.6]} 28. Kh1
{[%clk 0:00:20.5]} 28... Qa6 {[%clk 0:00:58]} 29. Raa1 {[%clk 0:00:19.8]} 29...
Be7 {[%clk 0:00:52.7]} 30. Bxh6 {[%clk 0:00:18.3]} 30... Rf5 {[%clk 0:00:44.4]}
31. Be3 {[%clk 0:00:17.2]} 31... Rdf8 {[%clk 0:00:40]} 32. Kh2 {[%clk
0:00:17.1]} 32... Nf4 {[%clk 0:00:18.1]} 33. Bxf4 {[%clk 0:00:13.6]} 33... Rxf4
{[%clk 0:00:18]} 34. Qg6 {[%clk 0:00:12.2]} 34... Qe2 {[%clk 0:00:15.5]} 35. Qg3
{[%clk 0:00:07.8]} 35... g5 {[%clk 0:00:09.7]} 36. Nxg5 {[%clk 0:00:05.9]} 36...
Bxg5 {[%clk 0:00:07.8]} 37. Qxg5+ {[%clk 0:00:05.5]} 37... Kh7 {[%clk
0:00:06.1]} 38. Rae1 {[%clk 0:00:02.8]} 38... Qxb2 {[%clk 0:00:01.1]} 39. Re3
{[%clk 0:00:01.5]} 1-0

[Event "Late-Titled-Tuesday-Blitz-June-25-2024"]
[Site "Chess.com"]
[Date "2024.06.25"]
[Round "9"]
[White "KatakuriDono"]
[Black "Perecke"]
[Result "1-0"]
[WhiteElo "2337"]
[BlackElo "2474"]
[TimeControl "180+1"]
[EndTime "15:45:01 PDT"]
[Termination "KatakuriDono won by checkmate"]

1. d4 {[%clk 0:03:00.9]} 1... d5 {[%clk 0:02:59.5]} 2. Nf3 {[%clk 0:03:00.9]}
2... Nf6 {[%clk 0:03:00]} 3. g3 {[%clk 0:03:01.1]} 3... Bf5 {[%clk 0:02:58.9]}
4. Bg2 {[%clk 0:03:01]} 4... e6 {[%clk 0:02:59.2]} 5. O-O {[%clk 0:03:01.2]}
5... Be7 {[%clk 0:02:59.4]} 6. c4 {[%clk 0:03:01.7]} 6... O-O {[%clk 0:02:58.8]}
7. Nc3 {[%clk 0:03:02.2]} 7... c6 {[%clk 0:02:56.7]} 8. cxd5 {[%clk 0:02:53.6]}
8... exd5 {[%clk 0:02:54.9]} 9. Qb3 {[%clk 0:02:53.3]} 9... Qb6 {[%clk
0:02:52.8]} 10. Qxb6 {[%clk 0:02:47]} 10... axb6 {[%clk 0:02:53.7]} 11. Bf4
{[%clk 0:02:41.4]} 11... Nbd7 {[%clk 0:02:49.6]} 12. Ne5 {[%clk 0:02:28.9]}
12... Rfd8 {[%clk 0:02:38.6]} 13. a4 {[%clk 0:02:24.1]} 13... Be6 {[%clk
0:02:36.4]} 14. Nd3 {[%clk 0:02:17.2]} 14... c5 {[%clk 0:02:33.1]} 15. Nb5
{[%clk 0:02:08.5]} 15... Rac8 {[%clk 0:02:21.4]} 16. Na7 {[%clk 0:02:04.6]}
16... Ra8 {[%clk 0:02:19.9]} 17. Nb5 {[%clk 0:02:05.2]} 17... Ne4 {[%clk
0:02:03]} 18. Ne5 {[%clk 0:01:55]} 18... f6 {[%clk 0:01:57.8]} 19. Nxd7 {[%clk
0:01:50.5]} 19... Bxd7 {[%clk 0:01:58.7]} 20. Bc7 {[%clk 0:01:47]} 20... Rdc8
{[%clk 0:01:55.9]} 21. Bxb6 {[%clk 0:01:46.2]} 21... Ra6 {[%clk 0:01:52.9]} 22.
Bxc5 {[%clk 0:01:45.9]} 22... Nxc5 {[%clk 0:01:52.3]} 23. dxc5 {[%clk
0:01:45.3]} 23... Rxc5 {[%clk 0:01:52.6]} 24. b4 {[%clk 0:01:39.3]} 24... Rc2
{[%clk 0:01:26.2]} 25. Bxd5+ {[%clk 0:01:37.4]} 25... Kf8 {[%clk 0:01:23.3]} 26.
Nd4 {[%clk 0:01:15.9]} 26... Rd2 {[%clk 0:01:18]} 27. Rfd1 {[%clk 0:01:15.6]}
27... Bxb4 {[%clk 0:01:17.1]} 28. Rxd2 {[%clk 0:01:06.6]} 28... Bxd2 {[%clk
0:01:16.3]} 29. Nb3 {[%clk 0:01:00.6]} 29... Bc3 {[%clk 0:01:05]} 30. Rc1 {[%clk
0:00:57.5]} 30... Bb4 {[%clk 0:00:44.2]} 31. Rc7 {[%clk 0:00:57.4]} 31... Ke8
{[%clk 0:00:40.7]} 32. Rxb7 {[%clk 0:00:54.2]} 32... Bd6 {[%clk 0:00:39.6]} 33.
a5 {[%clk 0:00:51.3]} 33... Ba4 {[%clk 0:00:36.1]} 34. Rb6 {[%clk 0:00:30.6]}
34... Rxb6 {[%clk 0:00:24.5]} 35. axb6 {[%clk 0:00:31.1]} 35... Kd7 {[%clk
0:00:22]} 36. Nd4 {[%clk 0:00:27.3]} 36... Bc5 {[%clk 0:00:20.1]} 37. Ne6 {[%clk
0:00:27.6]} 37... Bxb6 {[%clk 0:00:09.1]} 38. Nxg7 {[%clk 0:00:27.3]} 38... Bc2
{[%clk 0:00:09]} 39. Nh5 {[%clk 0:00:26.8]} 39... Bc7 {[%clk 0:00:06.8]} 40.
Nxf6+ {[%clk 0:00:26.5]} 40... Ke7 {[%clk 0:00:06.7]} 41. Ng4 {[%clk 0:00:25.6]}
41... Bf5 {[%clk 0:00:05]} 42. f3 {[%clk 0:00:24.4]} 42... Bc8 {[%clk
0:00:04.1]} 43. Nf2 {[%clk 0:00:23]} 43... Kf6 {[%clk 0:00:04.2]} 44. e4 {[%clk
0:00:23.2]} 44... Ba6 {[%clk 0:00:02.2]} 45. Kg2 {[%clk 0:00:23.2]} 45... Kg5
{[%clk 0:00:02.4]} 46. f4+ {[%clk 0:00:23.6]} 46... Kf6 {[%clk 0:00:02.7]} 47.
Ng4+ {[%clk 0:00:23.3]} 47... Kg7 {[%clk 0:00:01.6]} 48. e5 {[%clk 0:00:21.7]}
48... Bc8 {[%clk 0:00:02.5]} 49. e6 {[%clk 0:00:20.6]} 49... Kf8 {[%clk
0:00:01.7]} 50. f5 {[%clk 0:00:21.2]} 50... Ke7 {[%clk 0:00:02]} 51. f6+ {[%clk
0:00:21.1]} 51... Kf8 {[%clk 0:00:02.6]} 52. e7+ {[%clk 0:00:21.4]} 52... Ke8
{[%clk 0:00:02.4]} 53. Bc6+ {[%clk 0:00:21.9]} 53... Kf7 {[%clk 0:00:02.3]} 54.
e8=Q# {[%clk 0:00:21.8]} 1-0

[Event "Late-Titled-Tuesday-Blitz-June-25-2024"]
[Site "Chess.com"]
[Date "2024.06.25"]
[Round "9"]
[White "Javokhir_Sindarov05"]
[Black "Dedic8"]
[Result "0-1"]
[WhiteElo "3060"]
[BlackElo "2968"]
[TimeControl "180+1"]
[EndTime "15:45:04 PDT"]
[Termination "Dedic8 won by resignation"]

1. e4 {[%clk 0:03:00.9]} 1... c5 {[%clk 0:03:00.5]} 2. Nf3 {[%clk 0:03:01]} 2...
d6 {[%clk 0:02:58.9]} 3. d4 {[%clk 0:03:01.2]} 3... cxd4 {[%clk 0:02:59.8]} 4.
Nxd4 {[%clk 0:03:01.8]} 4... Nf6 {[%clk 0:03:00.4]} 5. Bd3 {[%clk 0:03:02.3]}
5... Nc6 {[%clk 0:03:01.1]} 6. Be3 {[%clk 0:03:02.1]} 6... Ng4 {[%clk
0:03:01.8]} 7. Nxc6 {[%clk 0:03:01.8]} 7... bxc6 {[%clk 0:03:02.7]} 8. Bd2
{[%clk 0:03:02.1]} 8... e5 {[%clk 0:02:50.4]} 9. c4 {[%clk 0:02:45.3]} 9... Be7
{[%clk 0:02:42.3]} 10. O-O {[%clk 0:02:38.4]} 10... Bg5 {[%clk 0:02:30.7]} 11.
Be2 {[%clk 0:01:49]} 11... Bxd2 {[%clk 0:02:10.1]} 12. Qxd2 {[%clk 0:01:49.2]}
12... Nf6 {[%clk 0:02:05.8]} 13. Nc3 {[%clk 0:01:49.4]} 13... Be6 {[%clk
0:01:51.9]} 14. Rfd1 {[%clk 0:01:38.8]} 14... Ke7 {[%clk 0:01:52.2]} 15. c5
{[%clk 0:01:06.5]} 15... dxc5 {[%clk 0:01:52.3]} 16. Qg5 {[%clk 0:01:07.1]}
16... Qc7 {[%clk 0:01:52.5]} 17. Qxg7 {[%clk 0:01:06.7]} 17... Rhd8 {[%clk
0:01:52]} 18. Qg5 {[%clk 0:01:04.6]} 18... Rd4 {[%clk 0:01:45.8]} 19. Bf3 {[%clk
0:00:48.9]} 19... Rad8 {[%clk 0:01:24.3]} 20. Re1 {[%clk 0:00:48.9]} 20... c4
{[%clk 0:01:17.1]} 21. Be2 {[%clk 0:00:21.9]} 21... Rg8 {[%clk 0:01:14.4]} 22.
Qh4 {[%clk 0:00:21.8]} 22... Qb6 {[%clk 0:01:08.7]} 23. Rab1 {[%clk 0:00:20.6]}
23... Rd2 {[%clk 0:01:02.9]} 24. Qh6 {[%clk 0:00:05.7]} 24... Rxb2 {[%clk
0:00:46.4]} 25. Rxb2 {[%clk 0:00:04.9]} 25... Qxb2 {[%clk 0:00:46.5]} 26. Qe3
{[%clk 0:00:05.4]} 26... Qb6 {[%clk 0:00:46.6]} 27. Qc1 {[%clk 0:00:06.1]} 27...
Qc5 {[%clk 0:00:32.7]} 28. Na4 {[%clk 0:00:06.6]} 28... Qb4 {[%clk 0:00:31.8]}
29. Nc3 {[%clk 0:00:07.3]} 29... Rd8 {[%clk 0:00:30.6]} 30. Qe3 {[%clk
0:00:05.4]} 30... Qb6 {[%clk 0:00:30.8]} 31. Qg5 {[%clk 0:00:06.1]} 31... Qd4
{[%clk 0:00:23.3]} 32. Qc1 {[%clk 0:00:03.5]} 32... Qd2 {[%clk 0:00:13.6]} 33.
Qa3+ {[%clk 0:00:03.9]} 33... Ke8 {[%clk 0:00:12.2]} 34. Rd1 {[%clk 0:00:04.5]}
34... Qc2 {[%clk 0:00:11.4]} 35. Rc1 {[%clk 0:00:04.5]} 35... Qd2 {[%clk
0:00:09.6]} 36. Rd1 {[%clk 0:00:05.1]} 36... Qh6 {[%clk 0:00:04.5]} 37. Rxd8+
{[%clk 0:00:05.2]} 37... Kxd8 {[%clk 0:00:05.1]} 38. h3 {[%clk 0:00:04.5]} 38...
Qd2 {[%clk 0:00:04.2]} 39. Qa5+ {[%clk 0:00:03.2]} 39... Kc8 {[%clk 0:00:04]}
40. Qxe5 {[%clk 0:00:04.1]} 40... Nd7 {[%clk 0:00:01.2]} 41. Qh8+ {[%clk
0:00:04.8]} 41... Kc7 {[%clk 0:00:01.5]} 42. Bf1 {[%clk 0:00:05.3]} 42... Qd6
{[%clk 0:00:01.6]} 43. Qf6 {[%clk 0:00:05.2]} 43... Nxf6 {[%clk 0:00:01.3]} 0-1

[Event "Late-Titled-Tuesday-Blitz-June-25-2024"]
[Site "Chess.com"]
[Date "2024.06.25"]
[Round "9"]
[White "RodriQA"]
[Black "JEHUBNER"]
[Result "1-0"]
[WhiteElo "2403"]
[BlackElo "2001"]
[TimeControl "180+1"]
[EndTime "15:45:06 PDT"]
[Termination "RodriQA won by checkmate"]

1. Nf3 {[%clk 0:02:58]} 1... Nf6 {[%clk 0:02:59.7]} 2. g3 {[%clk 0:02:58.1]}
2... g6 {[%clk 0:02:59.9]} 3. b3 {[%clk 0:02:57.7]} 3... Bg7 {[%clk 0:03:00.8]}
4. Bb2 {[%clk 0:02:58.5]} 4... d5 {[%clk 0:03:00.1]} 5. Bg2 {[%clk 0:02:58]}
5... c6 {[%clk 0:03:00.6]} 6. O-O {[%clk 0:02:57.7]} 6... Nbd7 {[%clk
0:03:00.3]} 7. c4 {[%clk 0:02:58]} 7... e6 {[%clk 0:02:58.6]} 8. d3 {[%clk
0:02:34.7]} 8... O-O {[%clk 0:02:57.8]} 9. Nbd2 {[%clk 0:02:33.4]} 9... b6
{[%clk 0:02:55.8]} 10. Qc2 {[%clk 0:02:18.7]} 10... Bb7 {[%clk 0:02:55.7]} 11.
e4 {[%clk 0:02:16.4]} 11... dxe4 {[%clk 0:02:55.4]} 12. dxe4 {[%clk 0:02:15.7]}
12... c5 {[%clk 0:02:55.4]} 13. Rad1 {[%clk 0:02:07.1]} 13... Qc7 {[%clk
0:02:55.5]} 14. Rfe1 {[%clk 0:02:05.2]} 14... e5 {[%clk 0:02:54.9]} 15. Nf1
{[%clk 0:01:57.3]} 15... Rad8 {[%clk 0:02:48.1]} 16. N3d2 {[%clk 0:01:48.8]}
16... Rfe8 {[%clk 0:02:46.4]} 17. Ne3 {[%clk 0:01:48.9]} 17... Nb8 {[%clk
0:02:28.3]} 18. Nd5 {[%clk 0:01:45.8]} 18... Bxd5 {[%clk 0:02:23.7]} 19. exd5
{[%clk 0:01:22.2]} 19... Nbd7 {[%clk 0:01:59.7]} 20. Re2 {[%clk 0:01:08.6]}
20... Qd6 {[%clk 0:01:59.8]} 21. Rde1 {[%clk 0:01:08.6]} 21... Re7 {[%clk
0:01:55.3]} 22. a4 {[%clk 0:01:07.9]} 22... Rde8 {[%clk 0:01:55.4]} 23. h3
{[%clk 0:01:01.4]} 23... a5 {[%clk 0:01:40.4]} 24. Nb1 {[%clk 0:00:54.5]} 24...
Nh5 {[%clk 0:01:17.3]} 25. Nc3 {[%clk 0:00:53.5]} 25... Nf8 {[%clk 0:00:45.2]}
26. Nb5 {[%clk 0:00:52.5]} 26... Qb8 {[%clk 0:00:45.2]} 27. d6 {[%clk
0:00:38.7]} 27... Re6 {[%clk 0:00:40.5]} 28. Bc6 {[%clk 0:00:35.1]} 28... Rd8
{[%clk 0:00:22.4]} 29. Bd5 {[%clk 0:00:32.5]} 29... Rexd6 {[%clk 0:00:20.6]} 30.
Nxd6 {[%clk 0:00:31.1]} 30... Qxd6 {[%clk 0:00:21.1]} 31. Bxe5 {[%clk
0:00:31.7]} 31... Bxe5 {[%clk 0:00:20.6]} 32. Rxe5 {[%clk 0:00:32.6]} 32... Nd7
{[%clk 0:00:19.2]} 33. Re7 {[%clk 0:00:31]} 33... Ndf6 {[%clk 0:00:19.1]} 34.
Rxf7 {[%clk 0:00:30]} 34... Kh8 {[%clk 0:00:18.8]} 35. Ree7 {[%clk 0:00:25.5]}
35... Nxg3 {[%clk 0:00:17.6]} 36. fxg3 {[%clk 0:00:22.2]} 36... Qxg3+ {[%clk
0:00:18.5]} 37. Qg2 {[%clk 0:00:22.5]} 37... Qc3 {[%clk 0:00:16.3]} 38. Kh2
{[%clk 0:00:16.8]} 38... Qd4 {[%clk 0:00:08.4]} 39. Re6 {[%clk 0:00:12.9]} 39...
Nh5 {[%clk 0:00:06.9]} 40. Rxh7+ {[%clk 0:00:05.7]} 40... Kxh7 {[%clk
0:00:06.3]} 41. Qxg6+ {[%clk 0:00:06.4]} 41... Kh8 {[%clk 0:00:04.6]} 42. Qxh5+
{[%clk 0:00:07]} 42... Kg8 {[%clk 0:00:03.4]} 43. Re4+ {[%clk 0:00:07.5]} 43...
Kf8 {[%clk 0:00:03.8]} 44. Rxd4 {[%clk 0:00:06.8]} 44... cxd4 {[%clk 0:00:04.7]}
45. Qf7# {[%clk 0:00:07.1]} 1-0

[Event "Late-Titled-Tuesday-Blitz-June-25-2024"]
[Site "Chess.com"]
[Date "2024.06.25"]
[Round "9"]
[White "grzechu96"]
[Black "bazar-wokzal"]
[Result "1/2-1/2"]
[WhiteElo "2764"]
[BlackElo "2616"]
[TimeControl "180+1"]
[EndTime "15:45:08 PDT"]
[Termination "Game drawn by repetition"]

1. e4 {[%clk 0:03:00.9]} 1... Nc6 {[%clk 0:02:59]} 2. Nf3 {[%clk 0:02:59.1]}
2... d5 {[%clk 0:02:58.4]} 3. exd5 {[%clk 0:02:59.2]} 3... Qxd5 {[%clk
0:02:58.2]} 4. Nc3 {[%clk 0:02:59.3]} 4... Qa5 {[%clk 0:02:58.1]} 5. d4 {[%clk
0:02:58.1]} 5... Bg4 {[%clk 0:02:57.8]} 6. Bb5 {[%clk 0:02:47.8]} 6... O-O-O
{[%clk 0:02:57.4]} 7. Bxc6 {[%clk 0:02:46.8]} 7... bxc6 {[%clk 0:02:58.3]} 8. h3
{[%clk 0:02:44.8]} 8... Qh5 {[%clk 0:02:57.1]} 9. Be3 {[%clk 0:02:39.5]} 9... e6
{[%clk 0:02:56.7]} 10. Qe2 {[%clk 0:02:28.1]} 10... Bxf3 {[%clk 0:02:55]} 11.
gxf3 {[%clk 0:02:27.5]} 11... Bb4 {[%clk 0:02:55]} 12. O-O-O {[%clk 0:02:17.8]}
12... Bxc3 {[%clk 0:02:54.5]} 13. bxc3 {[%clk 0:02:18.7]} 13... Ne7 {[%clk
0:02:52.8]} 14. c4 {[%clk 0:02:14.3]} 14... Qa5 {[%clk 0:02:42.7]} 15. Qd3
{[%clk 0:02:08.7]} 15... Qxa2 {[%clk 0:02:36.8]} 16. Kd2 {[%clk 0:02:08.7]}
16... Qa5+ {[%clk 0:02:35.5]} 17. Ke2 {[%clk 0:02:08.8]} 17... Qh5 {[%clk
0:02:32.3]} 18. Ra1 {[%clk 0:02:08.5]} 18... Kd7 {[%clk 0:02:30.9]} 19. Rxa7
{[%clk 0:01:59.4]} 19... Ra8 {[%clk 0:02:27.3]} 20. Rha1 {[%clk 0:01:41.9]}
20... Rxa7 {[%clk 0:02:25.7]} 21. Rxa7 {[%clk 0:01:42.8]} 21... Qxh3 {[%clk
0:02:15]} 22. d5 {[%clk 0:01:34.8]} 22... exd5 {[%clk 0:01:51.9]} 23. cxd5
{[%clk 0:01:35.7]} 23... cxd5 {[%clk 0:01:51.7]} 24. Qb5+ {[%clk 0:01:33.9]}
24... Ke6 {[%clk 0:01:42.5]} 25. Rxc7 {[%clk 0:01:32.1]} 25... Rd8 {[%clk
0:01:21]} 26. Bc5 {[%clk 0:00:52.5]} 26... Nf5 {[%clk 0:01:11.7]} 27. Qa6+
{[%clk 0:00:43.2]} 27... Ke5 {[%clk 0:00:58.6]} 28. Rxf7 {[%clk 0:00:40.1]}
28... Qh4 {[%clk 0:00:42.1]} 29. Qb6 {[%clk 0:00:19.1]} 29... Qc4+ {[%clk
0:00:37.3]} 30. Kd2 {[%clk 0:00:18.8]} 30... Rc8 {[%clk 0:00:28.6]} 31. Qb2+
{[%clk 0:00:15.5]} 31... d4 {[%clk 0:00:24.8]} 32. Ba7 {[%clk 0:00:09.6]} 32...
Qc3+ {[%clk 0:00:21.7]} 33. Qxc3 {[%clk 0:00:09.6]} 33... dxc3+ {[%clk
0:00:20.9]} 34. Kd3 {[%clk 0:00:08.6]} 34... h5 {[%clk 0:00:21.3]} 35. Bb6
{[%clk 0:00:02.8]} 35... h4 {[%clk 0:00:21.5]} 36. Ra7 {[%clk 0:00:01.7]} 36...
h3 {[%clk 0:00:21.4]} 37. Bc7+ {[%clk 0:00:01.7]} 37... Ke6 {[%clk 0:00:19.4]}
38. Bh2 {[%clk 0:00:01.3]} 38... Nh4 {[%clk 0:00:16.5]} 39. Ke4 {[%clk 0:00:01]}
39... Rc4+ {[%clk 0:00:15.4]} 40. Ke3 {[%clk 0:00:01.6]} 40... Nf5+ {[%clk
0:00:15]} 41. Kd3 {[%clk 0:00:01.5]} 41... Rc8 {[%clk 0:00:13.5]} 42. Ra6+
{[%clk 0:00:01.6]} 42... Kf7 {[%clk 0:00:13.4]} 43. Ra5 {[%clk 0:00:01.8]} 43...
Kg6 {[%clk 0:00:13.6]} 44. Ra4 {[%clk 0:00:02.3]} 44... Rd8+ {[%clk 0:00:11.9]}
45. Kxc3 {[%clk 0:00:02.5]} 45... Rc8+ {[%clk 0:00:11]} 46. Kd3 {[%clk
0:00:01.7]} 46... Rd8+ {[%clk 0:00:11.3]} 47. Kc3 {[%clk 0:00:02.1]} 47... Rc8+
{[%clk 0:00:11.4]} 48. Kd3 {[%clk 0:00:02.5]} 48... Rd8+ {[%clk 0:00:11.8]} 49.
Kc3 {[%clk 0:00:03]} 1/2-1/2